[Event "*** Titled Tuesday Blitz"]
[Site "Chess.com"]
[Date "2020.04.07"]
[Round "9"]
[White "pedroholly22"]
[Black "kayrakamer"]
[Result "0-1"]
[WhiteElo "2336"]
[BlackElo "2480"]
[TimeControl "180+1"]
[EndTime "14:47:30 PDT"]
[Termination "kayrakamer won on time"]

1. e4 {[%clk 0:03:00.9]} 1... c5 {[%clk 0:03:00.1]} 2. Nf3 {[%clk 0:02:58.8]}
2... d6 {[%clk 0:03:00.7]} 3. d4 {[%clk 0:02:58.2]} 3... cxd4 {[%clk 0:03:01.6]}
4. Nxd4 {[%clk 0:02:59.1]} 4... Nf6 {[%clk 0:03:02.1]} 5. Nc3 {[%clk 0:02:58.6]}
5... g6 {[%clk 0:03:02.5]} 6. Be3 {[%clk 0:02:50.4]} 6... Bg7 {[%clk 0:03:02.9]}
7. f3 {[%clk 0:02:49.4]} 7... a6 {[%clk 0:03:02.7]} 8. Qd2 {[%clk 0:02:47]} 8...
h5 {[%clk 0:03:03.2]} 9. O-O-O {[%clk 0:02:46.1]} 9... b5 {[%clk 0:03:03.2]} 10.
Kb1 {[%clk 0:02:44.5]} 10... Bb7 {[%clk 0:03:03.4]} 11. Rg1 {[%clk 0:02:19.9]}
11... Nbd7 {[%clk 0:02:59.6]} 12. g4 {[%clk 0:02:18.7]} 12... hxg4 {[%clk
0:02:59.4]} 13. fxg4 {[%clk 0:02:18.7]} 13... b4 {[%clk 0:02:47.6]} 14. Na4
{[%clk 0:02:04]} 14... Qa5 {[%clk 0:02:37.9]} 15. b3 {[%clk 0:01:39.5]} 15...
Nxe4 {[%clk 0:02:37.1]} 16. Qe1 {[%clk 0:01:24.9]} 16... Rxh2 {[%clk 0:02:14.9]}
17. Bf4 {[%clk 0:01:22.2]} 17... Rf2 {[%clk 0:01:45.6]} 18. Be3 {[%clk
0:01:17.5]} 18... Rh2 {[%clk 0:01:35.4]} 19. Bf4 {[%clk 0:01:16.7]} 19... Rh8
{[%clk 0:01:35.6]} 20. Bg2 {[%clk 0:01:07.2]} 20... Ndc5 {[%clk 0:01:19.6]} 21.
Bxe4 {[%clk 0:01:04.2]} 21... Nxe4 {[%clk 0:01:17.6]} 22. Qe3 {[%clk 0:00:39.7]}
22... e5 {[%clk 0:01:06.6]} 23. Bxe5 {[%clk 0:00:39]} 23... Qxe5 {[%clk
0:01:01.6]} 24. Rge1 {[%clk 0:00:37.3]} 24... Rc8 {[%clk 0:00:38.9]} 25. Rd3
{[%clk 0:00:27.8]} 25... Kf8 {[%clk 0:00:35.9]} 26. Nb6 {[%clk 0:00:24.4]} 26...
Rd8 {[%clk 0:00:28.5]} 27. Nc4 {[%clk 0:00:20.4]} 27... Qc5 {[%clk 0:00:27.1]}
28. Red1 {[%clk 0:00:11.4]} 28... Nc3+ {[%clk 0:00:20.5]} 29. Rxc3 {[%clk
0:00:10.3]} 29... bxc3 {[%clk 0:00:21]} 30. Ne6+ {[%clk 0:00:06.6]} 30... fxe6
{[%clk 0:00:21]} 31. Rf1+ {[%clk 0:00:06.3]} 31... Ke7 {[%clk 0:00:17.9]} 32.
Qe2 {[%clk 0:00:05.3]} 32... Rhf8 {[%clk 0:00:13.6]} 33. Re1 {[%clk 0:00:04.7]}
33... e5 {[%clk 0:00:12.9]} 34. Qh2 {[%clk 0:00:04.2]} 34... Bf6 {[%clk
0:00:11.1]} 35. Qh7+ {[%clk 0:00:03.8]} 35... Rf7 {[%clk 0:00:11.5]} 36. Qxg6
{[%clk 0:00:04.3]} 36... Rdf8 {[%clk 0:00:09.7]} 37. g5 {[%clk 0:00:04.2]} 37...
Bg7 {[%clk 0:00:10.2]} 38. a4 {[%clk 0:00:02.2]} 38... Bd5 {[%clk 0:00:10.3]}
0-1

[Event "*** Titled Tuesday Blitz"]
[Site "Chess.com"]
[Date "2020.04.07"]
[Round "9"]
[White "RzayevB"]
[Black "SahaNeelash"]
[Result "0-1"]
[WhiteElo "2645"]
[BlackElo "2531"]
[TimeControl "180+1"]
[EndTime "14:47:32 PDT"]
[Termination "SahaNeelash won by checkmate"]

1. Nf3 {[%clk 0:03:00.9]} 1... d6 {[%clk 0:02:58.8]} 2. g3 {[%clk 0:03:01.8]}
2... e5 {[%clk 0:02:57.9]} 3. Bg2 {[%clk 0:03:02.7]} 3... g6 {[%clk 0:02:58.5]}
4. e4 {[%clk 0:03:00.7]} 4... Bg7 {[%clk 0:02:58.6]} 5. d4 {[%clk 0:03:01.3]}
5... Nd7 {[%clk 0:02:57.1]} 6. Nc3 {[%clk 0:03:00.8]} 6... c6 {[%clk 0:02:56.4]}
7. Bg5 {[%clk 0:02:56.6]} 7... Qc7 {[%clk 0:02:55.8]} 8. Qd2 {[%clk 0:02:54.9]}
8... h6 {[%clk 0:02:55]} 9. Be3 {[%clk 0:02:54.4]} 9... Ngf6 {[%clk 0:02:51.3]}
10. h3 {[%clk 0:02:53.8]} 10... Nf8 {[%clk 0:02:51.3]} 11. O-O-O {[%clk
0:02:50.9]} 11... N6d7 {[%clk 0:02:50]} 12. dxe5 {[%clk 0:02:49.5]} 12... dxe5
{[%clk 0:02:48.8]} 13. h4 {[%clk 0:02:34.2]} 13... Ne6 {[%clk 0:02:45.4]} 14.
Bh3 {[%clk 0:02:28.7]} 14... Nb6 {[%clk 0:02:45.2]} 15. Qe2 {[%clk 0:02:16]}
15... Qe7 {[%clk 0:02:34.7]} 16. Kb1 {[%clk 0:02:14.9]} 16... Nc7 {[%clk
0:02:23.7]} 17. Bxc8 {[%clk 0:02:06.9]} 17... Rxc8 {[%clk 0:02:24.6]} 18. g4
{[%clk 0:02:07.2]} 18... O-O {[%clk 0:02:23.9]} 19. Qd2 {[%clk 0:02:00.4]} 19...
Rfd8 {[%clk 0:02:16.3]} 20. Qc1 {[%clk 0:02:00.1]} 20... Qf8 {[%clk 0:02:07.5]}
21. h5 {[%clk 0:01:58.5]} 21... g5 {[%clk 0:02:07.4]} 22. Rxd8 {[%clk
0:01:52.3]} 22... Qxd8 {[%clk 0:02:03.7]} 23. Nxg5 {[%clk 0:01:36.6]} 23... hxg5
{[%clk 0:02:03.3]} 24. Bxg5 {[%clk 0:01:37.5]} 24... Bf6 {[%clk 0:02:02.9]} 25.
Be3 {[%clk 0:01:29]} 25... Ne6 {[%clk 0:01:59.9]} 26. f4 {[%clk 0:01:17.5]}
26... exf4 {[%clk 0:01:53.6]} 27. Bxf4 {[%clk 0:01:18.4]} 27... Nxf4 {[%clk
0:01:43]} 28. Qxf4 {[%clk 0:01:19.3]} 28... Bg5 {[%clk 0:01:42.3]} 29. Qe5
{[%clk 0:01:01.8]} 29... Nc4 {[%clk 0:01:33.7]} 30. Qc5 {[%clk 0:00:54.6]} 30...
Nd2+ {[%clk 0:01:27.6]} 31. Ka1 {[%clk 0:00:54.7]} 31... b6 {[%clk 0:01:24.2]}
32. Qf5 {[%clk 0:00:54.7]} 32... Rc7 {[%clk 0:01:19.7]} 33. Rd1 {[%clk
0:00:51.3]} 33... Rd7 {[%clk 0:01:11.5]} 34. e5 {[%clk 0:00:41.8]} 34... Rd4
{[%clk 0:01:00.5]} 35. e6 {[%clk 0:00:37.7]} 35... Qf6 {[%clk 0:00:42.1]} 36.
exf7+ {[%clk 0:00:26.8]} 36... Kxf7 {[%clk 0:00:43]} 37. Qh7+ {[%clk 0:00:25.2]}
37... Qg7 {[%clk 0:00:31.5]} 38. Qf5+ {[%clk 0:00:25.2]} 38... Kg8 {[%clk
0:00:28.8]} 39. Qc8+ {[%clk 0:00:24]} 39... Rd8 {[%clk 0:00:24.4]} 40. Qxc6
{[%clk 0:00:22.7]} 40... Bf6 {[%clk 0:00:22.7]} 41. Qe6+ {[%clk 0:00:17.3]}
41... Kh8 {[%clk 0:00:20.5]} 42. Nb1 {[%clk 0:00:15.7]} 42... Bxb2# {[%clk
0:00:20]} 0-1

[Event "*** Titled Tuesday Blitz"]
[Site "Chess.com"]
[Date "2020.04.07"]
[Round "9"]
[White "eldur16"]
[Black "Bad4life"]
[Result "1-0"]
[WhiteElo "2553"]
[BlackElo "2341"]
[TimeControl "180+1"]
[EndTime "14:47:33 PDT"]
[Termination "eldur16 won by resignation"]

1. e4 {[%clk 0:03:00.9]} 1... c5 {[%clk 0:02:57.1]} 2. Ne2 {[%clk 0:02:59.2]}
2... g6 {[%clk 0:02:54.8]} 3. d4 {[%clk 0:02:57.5]} 3... cxd4 {[%clk 0:02:55.7]}
4. Nxd4 {[%clk 0:02:57.7]} 4... Nc6 {[%clk 0:02:54.1]} 5. c4 {[%clk 0:02:56.1]}
5... Nf6 {[%clk 0:02:54.1]} 6. Nc3 {[%clk 0:02:55.2]} 6... d6 {[%clk 0:02:54.3]}
7. Be2 {[%clk 0:02:54.8]} 7... Nxd4 {[%clk 0:02:54.5]} 8. Qxd4 {[%clk
0:02:54.2]} 8... Bg7 {[%clk 0:02:55.4]} 9. Be3 {[%clk 0:02:51.5]} 9... O-O
{[%clk 0:02:55.7]} 10. Qd2 {[%clk 0:02:50.4]} 10... Be6 {[%clk 0:02:54.6]} 11.
f3 {[%clk 0:02:50.1]} 11... a5 {[%clk 0:02:54.7]} 12. O-O {[%clk 0:02:42.1]}
12... a4 {[%clk 0:02:55]} 13. Rac1 {[%clk 0:02:37.7]} 13... Qa5 {[%clk
0:02:51.7]} 14. Rfd1 {[%clk 0:02:36.4]} 14... Rfc8 {[%clk 0:02:48.8]} 15. Nb5
{[%clk 0:02:35.4]} 15... Qd8 {[%clk 0:02:34.9]} 16. e5 {[%clk 0:02:26.8]} 16...
dxe5 {[%clk 0:02:25.7]} 17. Qxd8+ {[%clk 0:02:26.3]} 17... Rxd8 {[%clk
0:02:26.6]} 18. Nc7 {[%clk 0:02:26.5]} 18... Rac8 {[%clk 0:01:56.2]} 19. Nxe6
{[%clk 0:02:22.1]} 19... fxe6 {[%clk 0:01:57.1]} 20. Bb6 {[%clk 0:02:09.7]}
20... Rd6 {[%clk 0:01:37.5]} 21. c5 {[%clk 0:02:08.8]} 21... Rd4 {[%clk
0:01:37.8]} 22. c6 {[%clk 0:01:47.1]} 22... Rxd1+ {[%clk 0:01:31]} 23. Bxd1
{[%clk 0:01:47.1]} 23... bxc6 {[%clk 0:00:44]} 24. Bxa4 {[%clk 0:01:45.8]} 24...
Nd5 {[%clk 0:00:44.1]} 25. Bf2 {[%clk 0:01:26.9]} 25... Nb4 {[%clk 0:00:41.5]}
26. Bb3 {[%clk 0:01:24.1]} 26... Kf7 {[%clk 0:00:35.6]} 27. Bc4 {[%clk
0:01:12.6]} 27... Bh6 {[%clk 0:00:31.8]} 28. Re1 {[%clk 0:01:06.9]} 28... Kf6
{[%clk 0:00:23.3]} 29. Bh4+ {[%clk 0:01:01.7]} 29... g5 {[%clk 0:00:05.1]} 30.
Bg3 {[%clk 0:01:01.2]} 30... Nc2 {[%clk 0:00:02.8]} 31. Re2 {[%clk 0:00:51.5]}
31... Nb4 {[%clk 0:00:01.8]} 32. Bxe5+ {[%clk 0:00:51.2]} 32... Kf7 {[%clk
0:00:02.4]} 33. Bxe6+ {[%clk 0:00:38.2]} 33... Kxe6 {[%clk 0:00:02.5]} 34. Bc3+
{[%clk 0:00:37]} 34... Kd5 {[%clk 0:00:02.3]} 35. Bxb4 {[%clk 0:00:37]} 35... e5
{[%clk 0:00:02.6]} 36. Bc3 {[%clk 0:00:36.2]} 36... Bg7 {[%clk 0:00:02.5]} 37.
Kf2 {[%clk 0:00:35.4]} 37... c5 {[%clk 0:00:02.8]} 38. b3 {[%clk 0:00:34.8]}
38... Ra8 {[%clk 0:00:03.2]} 39. Rd2+ {[%clk 0:00:34.4]} 39... Kc6 {[%clk
0:00:03.2]} 40. Ke3 {[%clk 0:00:33.5]} 40... h5 {[%clk 0:00:02.4]} 41. Ke4
{[%clk 0:00:33.1]} 41... Kb5 {[%clk 0:00:02.7]} 42. Kf5 {[%clk 0:00:31.9]} 42...
Rf8+ {[%clk 0:00:02.9]} 43. Kxg5 {[%clk 0:00:30.1]} 43... Rf7 {[%clk 0:00:02.3]}
44. Kg6 {[%clk 0:00:29.5]} 44... Re7 {[%clk 0:00:02.8]} 45. Kxh5 {[%clk
0:00:29.4]} 45... e4 {[%clk 0:00:02.6]} 46. Bxg7 {[%clk 0:00:28.1]} 46... e3
{[%clk 0:00:03.2]} 47. Re2 {[%clk 0:00:27.5]} 47... c4 {[%clk 0:00:03.4]} 48.
Bd4 {[%clk 0:00:26]} 48... cxb3 {[%clk 0:00:03.1]} 49. axb3 {[%clk 0:00:25.5]}
1-0

[Event "*** Titled Tuesday Blitz"]
[Site "Chess.com"]
[Date "2020.04.07"]
[Round "9"]
[White "Girkassa"]
[Black "Everyfishknows"]
[Result "1-0"]
[WhiteElo "2523"]
[BlackElo "2360"]
[TimeControl "180+1"]
[EndTime "14:47:34 PDT"]
[Termination "Girkassa won by resignation"]

1. d4 {[%clk 0:03:00.9]} 1... Nf6 {[%clk 0:02:58.9]} 2. c4 {[%clk 0:03:00.8]}
2... e6 {[%clk 0:02:58.6]} 3. Nf3 {[%clk 0:03:00.5]} 3... Bb4+ {[%clk
0:02:58.2]} 4. Nc3 {[%clk 0:02:58.4]} 4... O-O {[%clk 0:02:49.5]} 5. g3 {[%clk
0:02:57]} 5... Nc6 {[%clk 0:02:42.8]} 6. Bg2 {[%clk 0:02:55]} 6... d6 {[%clk
0:02:36.3]} 7. O-O {[%clk 0:02:41.4]} 7... Bxc3 {[%clk 0:02:31.4]} 8. bxc3
{[%clk 0:02:41.1]} 8... e5 {[%clk 0:02:30]} 9. Qc2 {[%clk 0:02:35.6]} 9... Rb8
{[%clk 0:02:17.8]} 10. Rd1 {[%clk 0:02:34.6]} 10... exd4 {[%clk 0:02:17.1]} 11.
cxd4 {[%clk 0:02:33.9]} 11... d5 {[%clk 0:02:16.2]} 12. cxd5 {[%clk 0:02:29]}
12... Nb4 {[%clk 0:02:15.4]} 13. Qb3 {[%clk 0:02:26.6]} 13... Nbxd5 {[%clk
0:02:11.1]} 14. Ne5 {[%clk 0:02:24.4]} 14... Be6 {[%clk 0:02:08.3]} 15. Qc2
{[%clk 0:02:19.6]} 15... c6 {[%clk 0:01:57.7]} 16. e4 {[%clk 0:02:18]} 16... Nb6
{[%clk 0:01:57.5]} 17. Bb2 {[%clk 0:02:08.5]} 17... Qe7 {[%clk 0:01:44.1]} 18.
Qe2 {[%clk 0:02:01.7]} 18... Rfd8 {[%clk 0:01:41.2]} 19. f4 {[%clk 0:01:56.9]}
19... Qb4 {[%clk 0:01:13.5]} 20. Rab1 {[%clk 0:01:45.3]} 20... Qa4 {[%clk
0:01:12.6]} 21. a3 {[%clk 0:01:42.8]} 21... Nc4 {[%clk 0:01:11]} 22. Nxc4 {[%clk
0:01:40]} 22... Bxc4 {[%clk 0:01:11.9]} 23. Qe3 {[%clk 0:01:35.9]} 23... Qb3
{[%clk 0:01:02.5]} 24. Bc3 {[%clk 0:01:24.5]} 24... Qxa3 {[%clk 0:00:58.4]} 25.
Ra1 {[%clk 0:01:24.6]} 25... Qb3 {[%clk 0:00:57.6]} 26. Rdb1 {[%clk 0:01:21]}
26... Qc2 {[%clk 0:00:56.2]} 27. Rb2 {[%clk 0:01:13]} 27... Qd3 {[%clk
0:00:54.8]} 28. Qe1 {[%clk 0:01:13.1]} 28... a6 {[%clk 0:00:26.8]} 29. Rd1
{[%clk 0:01:03.2]} 29... Ng4 {[%clk 0:00:11.6]} 30. Rxd3 {[%clk 0:01:02.1]}
30... Bxd3 {[%clk 0:00:12.5]} 31. h3 {[%clk 0:01:01.1]} 31... Nf6 {[%clk
0:00:12.5]} 32. d5 {[%clk 0:00:58.2]} 32... cxd5 {[%clk 0:00:12.2]} 33. Bxf6
{[%clk 0:00:58.2]} 33... gxf6 {[%clk 0:00:13.1]} 34. exd5 {[%clk 0:00:58.1]}
34... Re8 {[%clk 0:00:13.8]} 35. Qc3 {[%clk 0:00:57.8]} 35... Bb5 {[%clk
0:00:14.5]} 36. Qxf6 {[%clk 0:00:57]} 36... Re1+ {[%clk 0:00:15.2]} 37. Kh2
{[%clk 0:00:56.5]} 37... Rbe8 {[%clk 0:00:15.9]} 38. d6 {[%clk 0:00:52.1]} 38...
R1e2 {[%clk 0:00:15]} 39. Rxe2 {[%clk 0:00:50]} 39... Rxe2 {[%clk 0:00:15.9]}
40. Qd8+ {[%clk 0:00:47.4]} 40... Kg7 {[%clk 0:00:15.7]} 41. Kg1 {[%clk
0:00:43.5]} 41... Re1+ {[%clk 0:00:14.6]} 42. Kf2 {[%clk 0:00:43.2]} 42... Re2+
{[%clk 0:00:15.2]} 43. Kf3 {[%clk 0:00:43.3]} 43... Rd2 {[%clk 0:00:16]} 44.
Qg5+ {[%clk 0:00:38.2]} 44... Kf8 {[%clk 0:00:16.7]} 45. Qe7+ {[%clk 0:00:38.1]}
45... Kg7 {[%clk 0:00:16.8]} 46. Bh1 {[%clk 0:00:35.4]} 46... Bc6+ {[%clk
0:00:16.4]} 47. Ke3 {[%clk 0:00:35.3]} 47... Rd1 {[%clk 0:00:17.1]} 48. Bxc6
{[%clk 0:00:33.4]} 48... bxc6 {[%clk 0:00:08.6]} 49. Ke2 {[%clk 0:00:33.3]}
49... Rd5 {[%clk 0:00:08.5]} 50. d7 {[%clk 0:00:32.9]} 1-0

[Event "*** Titled Tuesday Blitz"]
[Site "Chess.com"]
[Date "2020.04.07"]
[Round "9"]
[White "francyIM"]
[Black "poummba"]
[Result "1/2-1/2"]
[WhiteElo "2654"]
[BlackElo "2501"]
[TimeControl "180+1"]
[EndTime "14:47:36 PDT"]
[Termination "Game drawn by stalemate"]

1. d4 {[%clk 0:03:00.9]} 1... d5 {[%clk 0:02:59.6]} 2. c4 {[%clk 0:02:44.8]}
2... dxc4 {[%clk 0:03:00.5]} 3. Nf3 {[%clk 0:02:43.9]} 3... Nf6 {[%clk
0:02:59.5]} 4. e3 {[%clk 0:02:42.9]} 4... Bg4 {[%clk 0:02:59.6]} 5. Bxc4 {[%clk
0:02:41.6]} 5... e6 {[%clk 0:02:59.9]} 6. Nbd2 {[%clk 0:02:36]} 6... Nbd7 {[%clk
0:02:59.8]} 7. a3 {[%clk 0:02:30.4]} 7... Bd6 {[%clk 0:02:58.9]} 8. b4 {[%clk
0:02:29.8]} 8... a5 {[%clk 0:02:48.7]} 9. b5 {[%clk 0:02:28.3]} 9... O-O {[%clk
0:02:36.4]} 10. Bb2 {[%clk 0:02:27.2]} 10... e5 {[%clk 0:02:36.6]} 11. dxe5
{[%clk 0:02:24.5]} 11... Nxe5 {[%clk 0:02:35.9]} 12. Be2 {[%clk 0:02:24.5]}
12... Nxf3+ {[%clk 0:02:25.2]} 13. Bxf3 {[%clk 0:02:25.4]} 13... Bxf3 {[%clk
0:02:23.5]} 14. Qxf3 {[%clk 0:02:26.3]} 14... Nd7 {[%clk 0:02:07.6]} 15. Nc4
{[%clk 0:02:21.7]} 15... Nc5 {[%clk 0:01:49.1]} 16. Rd1 {[%clk 0:02:17.7]} 16...
Qe8 {[%clk 0:01:19]} 17. b6 {[%clk 0:02:04.9]} 17... Na4 {[%clk 0:01:11.5]} 18.
bxc7 {[%clk 0:01:45.2]} 18... Bxc7 {[%clk 0:01:06.1]} 19. Bd4 {[%clk 0:01:40.9]}
19... b5 {[%clk 0:01:00.3]} 20. Nb2 {[%clk 0:01:39.4]} 20... Nxb2 {[%clk
0:00:54]} 21. Bxb2 {[%clk 0:01:40.3]} 21... Be5 {[%clk 0:00:53]} 22. Bc1 {[%clk
0:01:37.5]} 22... Bc3+ {[%clk 0:00:52.1]} 23. Kf1 {[%clk 0:01:37.3]} 23... b4
{[%clk 0:00:51.9]} 24. axb4 {[%clk 0:01:19.6]} 24... axb4 {[%clk 0:00:51.6]} 25.
g4 {[%clk 0:01:20.5]} 25... b3 {[%clk 0:00:46.1]} 26. Kg2 {[%clk 0:01:17.3]}
26... b2 {[%clk 0:00:44.6]} 27. Bxb2 {[%clk 0:01:16.9]} 27... Bxb2 {[%clk
0:00:44.6]} 28. h4 {[%clk 0:01:17.8]} 28... Rc8 {[%clk 0:00:39.2]} 29. Rd2
{[%clk 0:00:58.6]} 29... Bc3 {[%clk 0:00:35.7]} 30. Rc2 {[%clk 0:00:58.3]} 30...
Be5 {[%clk 0:00:29.4]} 31. Rxc8 {[%clk 0:00:56.9]} 31... Qxc8 {[%clk 0:00:29]}
32. Rd1 {[%clk 0:00:57.8]} 32... Rd8 {[%clk 0:00:27]} 33. Rb1 {[%clk 0:00:56.6]}
33... Qa8 {[%clk 0:00:23.2]} 34. Rb7 {[%clk 0:00:55.2]} 34... Rf8 {[%clk
0:00:14.1]} 35. Rxf7 {[%clk 0:00:51.7]} 35... Qxf3+ {[%clk 0:00:11.5]} 36. Rxf3
{[%clk 0:00:52.6]} 36... Rxf3 {[%clk 0:00:11]} 37. Kxf3 {[%clk 0:00:53.5]} 37...
Kf7 {[%clk 0:00:10.8]} 38. Ke4 {[%clk 0:00:50.2]} 38... Bc3 {[%clk 0:00:10.5]}
39. f4 {[%clk 0:00:49.5]} 39... Kf6 {[%clk 0:00:08.1]} 40. Kf3 {[%clk
0:00:49.4]} 40... Ke6 {[%clk 0:00:07.2]} 41. e4 {[%clk 0:00:49.5]} 41... Kd6
{[%clk 0:00:06.1]} 42. h5 {[%clk 0:00:48.4]} 42... Kc5 {[%clk 0:00:04]} 43. g5
{[%clk 0:00:48.3]} 43... Kd4 {[%clk 0:00:03.9]} 44. h6 {[%clk 0:00:41.6]} 44...
gxh6 {[%clk 0:00:01.6]} 45. gxh6 {[%clk 0:00:42.5]} 45... Kc5 {[%clk 0:00:01.2]}
46. Kg4 {[%clk 0:00:42.7]} 46... Kd6 {[%clk 0:00:01.7]} 47. Kf5 {[%clk
0:00:43.2]} 47... Ke7 {[%clk 0:00:02.2]} 48. e5 {[%clk 0:00:43.6]} 48... Kf7
{[%clk 0:00:02.7]} 49. Kg5 {[%clk 0:00:43.2]} 49... Ke6 {[%clk 0:00:02.4]} 50.
Kg4 {[%clk 0:00:42.8]} 50... Bxe5 {[%clk 0:00:02.4]} 51. Kh3 {[%clk 0:00:43.1]}
51... Bxf4 {[%clk 0:00:02.3]} 52. Kg2 {[%clk 0:00:43.1]} 52... Bxh6 {[%clk
0:00:02.5]} 53. Kh1 {[%clk 0:00:44]} 53... Kf5 {[%clk 0:00:02.8]} 54. Kg1 {[%clk
0:00:44.9]} 54... Bf4 {[%clk 0:00:03.3]} 55. Kh1 {[%clk 0:00:45.8]} 55... Kg4
{[%clk 0:00:04.1]} 56. Kg1 {[%clk 0:00:44.5]} 56... Kf3 {[%clk 0:00:04.5]} 57.
Kh1 {[%clk 0:00:44.9]} 57... Bg3 {[%clk 0:00:04.3]} 58. Kg1 {[%clk 0:00:45.2]}
58... h5 {[%clk 0:00:04.6]} 59. Kh1 {[%clk 0:00:46.1]} 59... h4 {[%clk
0:00:05.2]} 60. Kg1 {[%clk 0:00:46.4]} 60... h3 {[%clk 0:00:06.1]} 61. Kh1
{[%clk 0:00:47.3]} 61... h2 {[%clk 0:00:06.6]} 1/2-1/2

[Event "*** Titled Tuesday Blitz"]
[Site "Chess.com"]
[Date "2020.04.07"]
[Round "9"]
[White "mbachez"]
[Black "pastouche06"]
[Result "1-0"]
[WhiteElo "2390"]
[BlackElo "2468"]
[TimeControl "180+1"]
[EndTime "14:47:36 PDT"]
[Termination "mbachez won by resignation"]

1. e4 {[%clk 0:03:00.9]} 1... c6 {[%clk 0:02:59.5]} 2. d4 {[%clk 0:02:59.7]}
2... d5 {[%clk 0:03:00.4]} 3. e5 {[%clk 0:02:59.4]} 3... Bf5 {[%clk 0:02:59.6]}
4. Nf3 {[%clk 0:02:59.5]} 4... e6 {[%clk 0:02:59.6]} 5. Be2 {[%clk 0:02:59.6]}
5... Ne7 {[%clk 0:02:59.5]} 6. Nbd2 {[%clk 0:02:59.6]} 6... Ng6 {[%clk
0:02:58.3]} 7. Nb3 {[%clk 0:02:58.9]} 7... Nd7 {[%clk 0:02:56.2]} 8. Be3 {[%clk
0:02:58.9]} 8... f6 {[%clk 0:02:55.7]} 9. exf6 {[%clk 0:02:57.5]} 9... gxf6
{[%clk 0:02:56.6]} 10. O-O {[%clk 0:02:55.5]} 10... Bd6 {[%clk 0:02:56]} 11. Re1
{[%clk 0:02:54.9]} 11... Qc7 {[%clk 0:02:51.7]} 12. c4 {[%clk 0:02:53.2]} 12...
O-O-O {[%clk 0:02:44.2]} 13. Rc1 {[%clk 0:02:50.6]} 13... Rhg8 {[%clk
0:02:39.3]} 14. Kh1 {[%clk 0:02:45.1]} 14... Nf4 {[%clk 0:02:34.8]} 15. Bf1
{[%clk 0:02:36.5]} 15... dxc4 {[%clk 0:02:19.6]} 16. Rxc4 {[%clk 0:02:30.3]}
16... Nb6 {[%clk 0:02:19]} 17. Rc1 {[%clk 0:02:23.3]} 17... Nbd5 {[%clk
0:02:17.7]} 18. g3 {[%clk 0:02:17.9]} 18... Ng6 {[%clk 0:01:57]} 19. Bd2 {[%clk
0:02:11.7]} 19... h5 {[%clk 0:01:21.2]} 20. Ba5 {[%clk 0:02:05.8]} 20... b6
{[%clk 0:01:21.2]} 21. Bb5 {[%clk 0:02:04.7]} 21... Nge7 {[%clk 0:01:15]} 22.
Bd2 {[%clk 0:01:51.5]} 22... Bg4 {[%clk 0:01:14]} 23. Be2 {[%clk 0:01:50.5]}
23... Kb8 {[%clk 0:01:10.1]} 24. Nh4 {[%clk 0:01:49.1]} 24... e5 {[%clk
0:00:39.2]} 25. dxe5 {[%clk 0:01:42.8]} 25... Bxe5 {[%clk 0:00:39]} 26. Bxg4
{[%clk 0:01:29.6]} 26... hxg4 {[%clk 0:00:39.9]} 27. Qc2 {[%clk 0:01:26.6]}
27... c5 {[%clk 0:00:38.4]} 28. Kg1 {[%clk 0:01:16.5]} 28... Qb7 {[%clk
0:00:35.4]} 29. Rcd1 {[%clk 0:00:57.5]} 29... Nc6 {[%clk 0:00:34.9]} 30. Bc3
{[%clk 0:00:52.8]} 30... Bxc3 {[%clk 0:00:32.7]} 31. bxc3 {[%clk 0:00:52.5]}
31... Ne5 {[%clk 0:00:33.1]} 32. Qf5 {[%clk 0:00:43.5]} 32... Qg7 {[%clk
0:00:26.9]} 33. c4 {[%clk 0:00:40.3]} 33... Nb4 {[%clk 0:00:26.6]} 34. Qf4
{[%clk 0:00:29.1]} 34... Nc6 {[%clk 0:00:23.2]} 35. Rd5 {[%clk 0:00:27.6]} 35...
Qg5 {[%clk 0:00:17.6]} 36. Red1 {[%clk 0:00:26.4]} 36... Rxd5 {[%clk 0:00:16.9]}
37. cxd5 {[%clk 0:00:25.8]} 37... Qxf4 {[%clk 0:00:17.2]} 38. gxf4 {[%clk
0:00:25.3]} 38... Nf3+ {[%clk 0:00:16.3]} 39. Nxf3 {[%clk 0:00:20.2]} 39...
gxf3+ {[%clk 0:00:17.2]} 40. Kh1 {[%clk 0:00:19.9]} 40... Nb4 {[%clk 0:00:17.8]}
41. d6 {[%clk 0:00:19.4]} 41... Kc8 {[%clk 0:00:14.6]} 42. a3 {[%clk 0:00:19.2]}
42... Nc6 {[%clk 0:00:13.3]} 43. Rd3 {[%clk 0:00:19]} 43... Kd7 {[%clk
0:00:13.7]} 44. Rxf3 {[%clk 0:00:18.9]} 44... Kxd6 {[%clk 0:00:14.2]} 45. Nd2
{[%clk 0:00:18.1]} 45... Kd5 {[%clk 0:00:14.3]} 46. Rg3 {[%clk 0:00:18.2]} 46...
Nd4 {[%clk 0:00:12.7]} 47. Rxg8 {[%clk 0:00:17.6]} 1-0